bitfinex/quotes_SOLUSD_20250310
["timestamp","ask_amount","ask_price","bid_price","bid_amount"]
[1741599553958,0.28432314,129.37,129.36,0.03]
[1741599554333,64.81239525,129.37,129.36,0.03]
[1741599554654,72.54209525,129.37,129.36,0.03]
[1741599554860,91.19174411,129.37,129.36,0.03]
[1741599555370,20.28432314,129.34,129.33,2.6794572]
[1741599555567,103.46204411,129.34,129.33,2.6794572]
[1741599555932,84.81239525,129.34,129.33,2.6794572]
[1741599556772,92.54389525,129.34,129.33,2.6794572]
[1741599556945,111.19354411,129.34,129.33,2.6794572]
[1741599558576,111.19354411,129.34,129.33,5.72e-05]
[1741599558777,0.28432314,129.29,129.23,0.03]
[1741599558966,0.28432314,129.27,129.23,0.03]
[1741599559468,0.14216157,129.27,129.23,64.55807211]
[1741599559796,0.14216157,129.27,129.25,64.52807211]
[1741599560075,0.28432314,129.28,129.23,64.55807211]
[1741599560460,64.81239525,129.28,129.23,0.03]
[1741599560782,92.26377211,129.27,129.23,0.03]
[1741599560955,0.28432314,129.25,129.23,0.03]
[1741599561583,0.28432314,129.26,129.23,0.03]
[1741599562081,103.46204411,129.24,129.23,0.03]
[1741599562300,20.28432314,129.24,129.23,0.03]
[1741599562449,0.28432314,129.24,129.23,0.03]
[1741599562654,20.28432314,129.24,129.23,0.03]
[1741599562966,26.671472,129.24,129.23,0.03]
[1741599563152,18.64964886,129.23,129.12,1.5864]
[1741599563353,0.28432314,129.19,129.15,64.52807211]
[1741599563556,0.28432314,129.19,129.14,64.52807211]
[1741599563770,0.28432314,129.17,129.12,66.11447211]
[1741599563967,64.81239525,129.16,129.11,64.52807211]
[1741599564157,0.28432314,129.16,129.11,20.0]
[1741599564361,0.28432314,129.17,129.12,64.52807211]
[1741599564584,0.28432314,129.15,129.08,7.7471]
[1741599564794,64.81239525,129.11,129.07,2.6494572]
[1741599564960,0.14216157,129.09,129.07,2.6494572]
[1741599565283,0.14216157,129.11,129.07,67.17752931]
[1741599565585,64.67023368,129.11,129.07,2.6494572]
[1741599565793,0.14216157,129.09,129.07,2.6494572]
[1741599566289,64.67023368,129.08,129.07,2.6494572]
[1741599566495,0.14216157,129.08,129.07,2.6494572]
[1741599566689,64.67023368,129.08,129.07,2.6494572]
[1741599567064,64.81239525,129.08,129.07,2.6494572]
[1741599567576,91.20914411,129.08,129.07,2.6494572]
[1741599567779,157.03157106,129.08,129.07,2.6494572]
[1741599568164,157.03157106,129.08,129.02,0.53]
[1741599568483,0.28432314,129.03,129.02,0.53]
[1741599569073,84.10922153,129.03,129.02,0.53]
[1741599569279,91.85932153,129.03,129.02,0.53]
[1741599570084,20.28432314,128.99,128.92,65.17524953]
[1741599570289,20.28432314,128.99,128.9,20.0]
[1741599570462,82.4,129.02,128.94,20.0]
[1741599570661,71.54134953,129.08,128.94,20.0]
[1741599570662,20.28432314,129.03,128.94,20.0]
[1741599570859,85.45957267,129.03,128.98,65.17524953]
[1741599571064,0.14216157,129.03,128.95,45.79184886]
[1741599571389,0.28432314,129.06,129.01,65.17524953]
[1741599571583,6.3661,129.08,128.95,47.79184886]
[1741599571584,0.28432314,129.08,129.03,65.17524953]
[1741599571783,0.14216157,129.07,129.03,65.17524953]
[1741599572169,65.3174111,129.07,129.01,65.17524953]
[1741599572365,65.17524953,129.02,128.96,1.5068]
[1741599572569,65.45957267,129.0,128.95,72.93014953]
[1741599572772,0.28432314,129.0,128.96,65.17524953]
[1741599572977,65.17524953,129.04,128.98,65.17524953]
[1741599573292,0.28432314,129.08,128.97,27.138]
[1741599573795,0.28432314,129.12,129.01,20.0]
[1741599573975,0.28432314,129.12,129.02,20.0]
[1741599574172,0.28432314,129.1,129.05,65.17524953]
[1741599574376,65.45957267,129.1,129.05,65.17524953]
[1741599574677,0.28432314,129.1,129.05,65.17524953]
[1741599574993,0.14216157,129.09,129.06,72.92354953]
[1741599575385,0.28432314,129.11,129.06,72.92354953]
[1741599575686,0.28432314,129.11,129.1,65.17524953]
[1741599575687,0.14216157,129.11,129.1,65.17524953]
[1741599575893,0.14216157,129.14,129.1,65.17524953]
[1741599576084,0.14216157,129.14,129.11,65.17524953]
[1741599576279,65.45957267,129.16,129.1,65.17524953]
[1741599576495,0.28432314,129.15,129.1,65.17524953]
[1741599576685,0.14216157,129.18,129.13,65.17524953]
[1741599576884,0.14216157,129.18,129.14,65.17524953]
[1741599577085,0.14216157,129.18,129.13,65.17524953]
[1741599577282,0.14216157,129.18,129.12,7.7442]
[1741599577488,0.28432314,129.15,129.09,7.7464]
[1741599577683,0.28432314,129.13,129.08,72.92224953]
[1741599577994,0.14216157,129.13,129.04,19.3738]
[1741599578200,82.4,129.17,129.08,65.17524953]
[1741599578388,0.28432314,129.09,129.03,7.7501]
[1741599578579,65.17524953,129.08,129.03,65.17524953]
[1741599578786,0.28432314,129.07,128.97,25.3848]
[1741599578993,65.45957267,129.04,128.97,6.0018]
[1741599579493,65.45957267,129.04,128.97,65.17524953]
[1741599579494,65.17524953,129.03,128.97,65.17524953]
[1741599579876,65.45957267,129.04,128.98,65.17524953]
[1741599580076,65.17524953,129.03,128.98,65.17524953]
[1741599580389,0.28432314,129.04,128.98,65.17524953]
[1741599580390,8.03382314,129.04,128.98,65.17524953]
[1741599580583,0.14216157,129.04,128.98,65.17524953]
[1741599580883,0.28432314,129.04,128.99,65.17524953]
[1741599581205,65.45957267,129.04,128.98,65.17524953]
[1741599581390,0.14216157,129.06,129.01,65.17524953]
[1741599581591,0.28432314,129.09,129.05,65.17524953]
[1741599581789,0.14216157,129.08,129.03,65.17524953]
[1741599582103,0.28432314,129.04,128.99,65.17524953]
[1741599582321,0.28432314,129.04,128.96,7.7543]
[1741599582604,0.28432314,129.05,129.01,65.17524953]
[1741599582801,0.28432314,129.05,129.02,65.17524953]
[1741599582980,0.28432314,129.05,128.96,45.78974886]
[1741599583175,0.28432314,129.05,128.96,7.7543]
[1741599583380,0.14216157,129.02,128.97,65.17524953]
[1741599583611,0.14216157,129.01,128.96,72.92954953]
[1741599583910,0.28432314,129.04,128.99,65.17524953]
[1741599584198,0.14216157,129.02,128.97,65.17524953]
[1741599584403,0.28432314,128.99,128.94,0.03]
[1741599584604,0.28432314,128.99,128.94,65.20524953]
[1741599584780,0.14216157,128.99,128.95,65.17524953]
[1741599584979,65.45957267,129.01,128.94,0.03]
[1741599585174,0.28432314,128.98,128.94,0.03]
[1741599585599,65.45957267,128.95,128.94,0.03]
[1741599586307,0.14216157,128.9,128.81,2.6494572]
[1741599586604,0.28432314,128.88,128.81,10.4126572]
[1741599586778,0.14216157,128.89,128.86,65.17524953]
[1741599587108,73.21737267,128.91,128.85,65.17524953]
[1741599587401,0.28432314,128.89,128.85,65.17524953]
[1741599587709,0.28432314,128.89,128.82,7.7627]
[1741599587710,65.45957267,128.89,128.84,65.17524953]
[1741599588008,0.14216157,128.89,128.84,65.17524953]
[1741599588192,0.14216157,128.92,128.87,65.17524953]
[1741599588601,0.14216157,128.92,128.9,65.17524953]
[1741599588602,0.28432314,128.92,128.9,65.17524953]
[1741599588805,0.28432314,128.92,128.84,18.64964886]
[1741599588806,0.28432314,128.95,128.91,65.17524953]
[1741599589200,0.28432314,128.95,128.92,65.17524953]
[1741599589406,65.45957267,128.98,128.92,65.17524953]
[1741599589601,0.14216157,128.98,128.89,18.64964886]
[1741599589907,7.7495,129.04,128.97,65.17524953]
[1741599590206,0.14216157,129.03,128.94,65.17524953]
[1741599590404,0.28432314,129.03,128.94,65.17524953]
[1741599590590,85.45957267,129.03,128.94,65.17524953]
[1741599590790,0.28432314,128.99,128.91,20.0]
[1741599590994,0.28432314,128.99,128.95,65.17524953]
[1741599591294,0.28432314,128.99,128.91,65.17524953]
[1741599591295,0.28432314,128.98,128.91,65.17524953]
[1741599591501,0.14216157,128.95,128.91,65.17524953]
[1741599591703,0.14216157,128.95,128.92,65.17524953]
[1741599591901,0.28432314,128.98,128.92,65.17524953]
[1741599592087,65.45957267,128.98,128.92,65.17524953]
[1741599592282,0.28432314,128.98,128.95,65.17524953]
[1741599592481,19.3735,129.05,128.96,65.17524953]
[1741599592482,0.28432314,129.02,128.96,65.17524953]
[1741599592682,65.45957267,129.02,128.97,65.17524953]
[1741599593094,65.17524953,128.98,128.87,65.17524953]
[1741599593423,0.28432314,128.96,128.91,65.17524953]
[1741599593611,65.3174111,128.96,128.91,65.17524953]
[1741599593815,0.28432314,128.92,128.88,7.7591]
[1741599594121,0.28432314,128.93,128.89,65.17524953]
[1741599594321,32.74224886,128.99,128.88,7.7591]
[1741599594322,0.28432314,128.94,128.9,65.17524953]
[1741599594518,65.45957267,128.94,128.89,65.17524953]
[1741599594826,65.45957267,128.94,128.88,72.93434953]
[1741599595024,0.28432314,128.95,128.9,65.17524953]
[1741599595204,73.21457267,128.95,128.89,65.17524953]
[1741599595410,0.28432314,128.91,128.86,65.17524953]
[1741599595925,65.45957267,128.94,128.88,65.17524953]
[1741599596216,0.28432314,128.91,128.86,65.17524953]
[1741599596421,0.28432314,128.93,128.89,65.17524953]
[1741599596609,0.28432314,128.94,128.89,65.17524953]
[1741599596809,65.45957267,128.94,128.88,65.17524953]
[1741599597011,0.28432314,128.94,128.89,65.17524953]
[1741599597314,20.34732314,128.96,128.91,65.17524953]
[1741599597504,0.34732314,128.96,128.91,65.17524953]
[1741599597705,0.34732314,128.96,128.92,65.17524953]
[1741599597706,0.063,128.96,128.92,65.17524953]
[1741599598234,65.45957267,128.93,128.82,7.7627]
[1741599598518,0.28432314,128.9,128.85,65.17524953]
[1741599598927,8.04252314,128.9,128.85,65.17524953]
[1741599599116,65.17524953,128.89,128.84,65.17524953]
[1741599599318,73.21777267,128.9,128.84,65.17524953]
[1741599599515,0.28432314,128.9,128.88,65.17524953]
[1741599599721,0.28432314,128.92,128.87,65.17524953]
[1741599599913,85.45957267,128.92,128.82,7.7627]
[1741599600112,85.45957267,128.92,128.86,65.17524953]
[1741599600313,0.28432314,128.89,128.82,312.0]
[1741599600616,65.45957267,128.89,128.84,65.17524953]
[1741599600920,65.45957267,128.89,128.81,10.4125572]
[1741599601102,0.28432314,128.89,128.86,65.17524953]
[1741599601303,0.28432314,128.89,128.81,10.4125572]
[1741599601304,0.28432314,128.89,128.87,65.17524953]
[1741599601502,8.04282314,128.89,128.84,65.17524953]
[1741599601904,0.28432314,128.9,128.85,65.17524953]
[1741599602103,8.04242314,128.9,128.85,65.17524953]
[1741599602518,65.45957267,128.87,128.81,2.6494572]
[1741599602699,65.17524953,128.86,128.81,2.6494572]
[1741599603003,0.28432314,128.82,128.81,2.6494572]
[1741599603201,0.14216157,128.82,128.81,2.6494572]
[1741599603398,65.17524953,128.87,128.81,2.6494572]
[1741599603399,19.3992,128.88,128.81,67.82470673]
[1741599603626,65.3174111,128.89,128.84,65.17524953]
[1741599603826,65.45957267,128.87,128.81,2.6494572]
[1741599604030,0.28432314,128.85,128.81,2.6494572]
[1741599604215,0.14216157,128.89,128.81,2.6494572]
[1741599604216,0.28432314,128.89,128.81,2.6494572]
[1741599604419,65.45957267,128.89,128.84,65.17524953]
[1741599604628,0.14216157,128.86,128.82,65.17524953]
[1741599604926,0.14216157,128.86,128.81,2.6494572]
[1741599604927,0.14216157,128.9,128.85,65.17524953]
[1741599605229,0.14216157,128.92,128.87,65.17524953]
[1741599605403,0.14216157,128.92,128.82,27.1696]
[1741599605600,147.57524953,128.95,128.89,65.17524953]
[1741599605820,0.063,128.96,128.91,65.17524953]
[1741599606025,0.063,128.96,128.93,65.17524953]
[1741599606508,0.14216157,128.94,128.85,6.6602]
[1741599606708,0.14216157,128.94,128.9,65.17524953]
[1741599607015,0.063,128.96,128.93,65.17524953]
[1741599607214,0.063,128.96,128.94,65.17524953]
[1741599607611,0.063,128.96,128.95,65.17524953]
[1741599608328,0.063,128.96,128.93,65.17524953]
[1741599608521,0.063,128.96,128.94,65.17524953]
[1741599608712,0.063,128.96,128.95,65.17524953]
[1741599609027,0.063,128.96,128.91,19.3933]
[1741599609214,0.063,128.96,128.95,65.17524953]
[1741599610810,82.4,129.05,128.95,65.17524953]
[1741599611005,0.28432314,129.04,129.0,65.17524953]
[1741599611211,0.28432314,129.02,128.95,7.7549]
[1741599611411,0.14216157,129.02,128.98,65.17524953]
[1741599611629,0.28432314,129.01,128.96,65.17524953]
[1741599612025,0.14216157,129.01,128.96,65.17524953]
[1741599612226,65.17524953,129.0,128.95,7.7549]
[1741599612421,65.45957267,129.01,128.95,72.93014953]
[1741599612621,65.3174111,129.01,128.96,65.17524953]
[1741599612825,0.28432314,129.04,128.99,65.17524953]
[1741599613030,0.28432314,129.04,129.0,65.17524953]
[1741599613232,65.17524953,129.07,129.01,65.17524953]
[1741599613429,0.28432314,129.06,129.03,65.17524953]
[1741599613630,65.45957267,129.07,129.01,65.17524953]
[1741599613823,0.28432314,129.07,129.03,65.17524953]
[1741599614134,82.463,129.08,129.05,65.17524953]
[1741599614135,0.063,129.08,129.05,65.17524953]
[1741599614336,0.063,129.08,129.06,65.17524953]
[1741599614525,0.063,129.08,129.07,65.17524953]
[1741599615240,0.063,129.09,129.08,18.64964886]
[1741599615441,0.063,129.09,129.08,65.17524953]
[1741599615941,0.063,129.09,129.03,2.0]
[1741599615942,0.063,129.09,129.02,18.64964886]
[1741599616113,0.063,129.09,129.06,65.17524953]
[1741599616436,0.14216157,129.08,129.0,15.4979]
[1741599616653,0.14216157,129.07,129.02,65.17524953]
[1741599616808,0.14216157,129.07,129.0,9.3955]
[1741599616809,0.14216157,129.06,129.0,7.7518]
[1741599617148,65.17524953,129.03,128.95,15.3765]
[1741599617314,65.17524953,129.06,129.01,65.17524953]
[1741599617513,0.28432314,129.03,128.99,65.17524953]
[1741599617713,0.14216157,129.02,128.98,65.17524953]
[1741599618115,0.14216157,129.06,128.98,65.17524953]
[1741599618314,0.28432314,129.02,128.98,65.17524953]
[1741599618533,0.28432314,129.03,128.99,65.17524953]
[1741599618734,0.28432314,129.03,128.98,65.17524953]
[1741599618917,65.17524953,129.06,129.0,65.17524953]
[1741599619124,0.28432314,129.08,129.04,65.17524953]
[1741599619418,0.20516157,129.09,129.05,65.17524953]
[1741599619625,0.28432314,129.05,129.0,65.17524953]
[1741599620433,0.28432314,129.02,128.95,7.6216]
[1741599620630,65.3174111,129.02,128.97,65.17524953]
[1741599620834,0.28432314,129.02,128.98,65.17524953]
[1741599621042,82.4,129.07,128.99,65.17524953]
[1741599621221,65.45957267,129.05,129.0,0.03]
[1741599621542,0.28432314,129.01,129.0,0.03]
[1741599621913,0.14216157,129.02,129.0,0.03]
[1741599622532,82.4,129.04,129.0,0.03]
[1741599622727,0.14216157,129.04,129.0,0.03]
[1741599622936,0.14216157,129.05,129.01,65.17524953]
[1741599623240,0.28432314,129.07,129.0,0.03]
[1741599623455,0.28432314,129.03,129.0,0.03]
[1741599623738,0.14216157,129.03,129.0,0.03]
[1741599623925,65.45957267,129.01,129.0,0.03]
[1741599624518,65.17524953,129.03,129.0,0.03]
[1741599624837,0.28432314,129.06,129.02,65.17524953]
[1741599625539,8.03272314,129.06,129.02,65.17524953]
[1741599625719,0.28432314,129.06,129.03,65.17524953]
[1741599625922,0.28432314,129.06,129.0,7.7818]
[1741599626118,0.14216157,129.08,129.04,65.17524953]
[1741599626619,0.063,129.09,129.05,65.17524953]
[1741599626823,7.8095,129.09,129.05,65.17524953]
[1741599627023,0.063,129.09,129.05,65.17524953]
[1741599627228,0.063,129.09,129.06,65.17524953]
[1741599627527,0.063,129.09,129.07,65.17524953]
[1741599627729,0.063,129.09,129.08,65.17524953]
[1741599628845,0.063,129.09,129.08,130.35049906]
[1741599629045,0.063,129.13,129.08,149.00014792]
[1741599629228,0.063,129.13,129.12,65.17524953]
[1741599629434,0.063,129.13,129.11,65.17524953]
[1741599629921,0.063,129.13,129.09,65.17524953]
[1741599630126,0.063,129.13,129.1,65.17524953]
[1741599630365,0.063,129.13,129.12,65.17524953]
[1741599631452,0.063,129.13,129.11,65.17524953]
[1741599631741,0.063,129.13,129.12,65.17524953]
[1741599633726,0.063,129.13,129.12,72.91994953]
[1741599634472,0.063,129.13,129.12,91.56959839]
[1741599635150,0.0001,129.13,129.12,156.74484792]
[1741599635364,0.0001,129.16,129.15,20.0]
[1741599635651,0.0001,129.16,129.15,72.91814953]
[1741599635852,0.0001,129.16,129.15,138.09339906]
[1741599636151,0.0001,129.16,129.15,65.17524953]
[1741599636657,0.0001,129.16,129.15,149.00014792]
[1741599636826,0.063,129.22,129.16,18.64964886]
[1741599637029,0.063,129.22,129.21,65.17524953]
[1741599637225,0.063,129.22,129.19,65.17524953]
[1741599637427,0.063,129.22,129.16,7.7419]
[1741599637733,0.063,129.22,129.2,65.17524953]
[1741599637929,0.063,129.22,129.21,65.17524953]
[1741599638853,0.063,129.22,129.17,1.6207]
[1741599639057,0.20516157,129.22,129.19,65.17524953]
[1741599639555,0.20516157,129.22,129.18,65.17524953]
[1741599639734,0.20516157,129.22,129.19,65.17524953]
[1741599639933,0.20516157,129.22,129.18,65.17524953]
[1741599640134,0.20516157,129.22,129.16,7.742]
[1741599640334,0.063,129.22,129.19,65.17524953]
[1741599640536,0.063,129.22,129.21,65.17524953]
[1741599641140,0.063,129.22,129.17,18.64964886]
[1741599641360,0.063,129.22,129.2,65.17524953]
[1741599641545,0.063,129.22,129.14,18.64964886]
[1741599641748,0.34732314,129.22,129.14,18.64964886]
[1741599641958,0.34732314,129.22,129.18,65.17524953]
[1741599642757,8.08602314,129.22,129.18,65.17524953]
[1741599643840,7.94386157,129.22,129.17,65.17524953]
[1741599644244,0.14216157,129.2,129.16,65.17524953]
[1741599644636,0.14216157,129.2,129.13,7.7441]
[1741599644637,7.7405,129.19,129.15,65.17524953]
[1741599645156,7.7405,129.19,129.14,65.17524953]
[1741599645556,7.88216157,129.2,129.16,65.17524953]
[1741599645757,7.88216157,129.2,129.17,65.17524953]
[1741599646061,0.14216157,129.19,129.15,65.17524953]
[1741599646242,7.88216157,129.2,129.16,65.17524953]
[1741599646568,82.4,129.21,129.12,9.293]
[1741599646569,82.4,129.21,129.18,65.17524953]
[1741599646766,0.063,129.22,129.19,65.17524953]
[1741599647366,0.063,129.22,129.2,65.17524953]
[1741599647663,7.8018,129.22,129.15,18.64964886]
[1741599647866,7.8018,129.22,129.17,65.17524953]
[1741599648246,65.45957267,129.21,129.16,65.17524953]
[1741599648453,0.28432314,129.18,129.14,65.17524953]
[1741599648764,8.02552314,129.18,129.14,65.17524953]
[1741599648967,0.28432314,129.18,129.13,7.7438]
[1741599649267,65.17524953,129.17,129.12,65.17524953]
[1741599649565,73.20087267,129.18,129.13,65.17524953]
[1741599649742,8.02562314,129.18,129.13,65.17524953]
[1741599650139,0.28432314,129.18,129.14,65.17524953]
[1741599650338,7.7406,129.19,129.14,65.17524953]
[1741599650568,0.28432314,129.18,129.13,65.17524953]
[1741599650755,0.28432314,129.16,129.09,18.67964886]
[1741599650953,0.28432314,129.14,129.09,0.03]
[1741599651264,65.3174111,129.15,129.1,65.17524953]
[1741599651444,0.14216157,129.15,129.11,65.17524953]
[1741599652148,7.7426,129.16,129.12,65.17524953]
[1741599652343,7.7426,129.16,129.09,0.03]
[1741599652344,0.28432314,129.15,129.09,0.03]
[1741599652556,0.14216157,129.13,129.09,65.20524953]
[1741599653062,7.88656157,129.13,129.09,65.20524953]
[1741599653269,0.14216157,129.15,129.11,65.17524953]
[1741599653446,7.88456157,129.16,129.11,65.17524953]
[1741599653645,73.0598111,129.16,129.11,65.17524953]
[1741599653868,73.0598111,129.16,129.09,7.7764]
[1741599653869,0.14216157,129.15,129.1,65.17524953]
[1741599654064,65.3174111,129.15,129.09,65.20524953]
[1741599654273,0.14216157,129.13,129.09,37.5743752]
[1741599654459,0.14216157,129.13,129.09,45.3207752]
[1741599654642,37.5443752,129.12,129.09,0.03]
[1741599654847,0.14216157,129.11,129.09,0.03]
[1741599655468,8.02932314,129.12,129.09,0.03]
[1741599656053,0.28432314,129.12,129.09,37.5743752]
[1741599656271,82.4,129.15,129.11,37.5443752]
[1741599656442,6.5499,129.18,129.09,0.03]
[1741599656443,0.14216157,129.14,129.09,0.03]
[1741599656649,0.14216157,129.14,129.1,37.5443752]
[1741599656951,0.14216157,129.14,129.11,37.5443752]
[1741599657162,45.2862752,129.17,129.12,45.2890752]
[1741599657385,0.28432314,129.16,129.12,37.5443752]
[1741599657673,0.28432314,129.16,129.09,37.5743752]
[1741599657674,0.14216157,129.13,129.09,37.5743752]
[1741599657850,0.28432314,129.14,129.09,37.5743752]
[1741599658049,0.28432314,129.14,129.09,45.3206752]
[1741599658265,0.28432314,129.14,129.1,37.5443752]
[1741599658871,37.5443752,129.16,129.11,37.5443752]
[1741599659067,37.5443752,129.17,129.12,37.5443752]
[1741599659254,0.28432314,129.17,129.13,37.5443752]
[1741599659571,0.14216157,129.15,129.1,37.5443752]
[1741599659955,0.14216157,129.15,129.11,37.5443752]
[1741599660354,37.68653677,129.17,129.11,37.5443752]
[1741599660674,0.28432314,129.17,129.09,7.7762]
[1741599660875,37.82869834,129.17,129.12,37.5443752]
[1741599661170,37.82869834,129.14,129.09,37.5743752]
[1741599661375,0.28432314,129.12,129.09,0.03]
[1741599661549,37.82869834,129.12,129.09,0.03]
[1741599662167,37.82869834,129.1,129.09,0.03]
[1741599662380,37.82869834,129.05,129.03,0.03]
[1741599662680,0.28432314,129.05,129.03,0.03]
[1741599662850,0.28432314,129.08,129.03,37.5743752]
[1741599663051,37.82869834,129.08,129.03,0.03]
[1741599663357,0.28432314,129.04,129.03,0.03]
[1741599663753,0.14216157,129.04,129.03,0.03]
[1741599664078,0.14216157,129.05,129.03,0.03]
[1741599664261,0.28432314,129.07,129.03,37.5743752]
[1741599664462,0.14216157,129.07,129.05,37.5443752]
[1741599664903,0.28432314,129.1,129.06,37.5443752]
[1741599665179,82.4,129.12,129.09,37.5443752]
[1741599665388,82.4,129.15,129.11,37.5443752]
[1741599665549,0.28432314,129.14,129.11,37.5443752]
[1741599665752,0.28432314,129.14,129.1,37.5443752]
[1741599666379,0.14216157,129.12,129.05,20.0]
[1741599666562,56.46178157,129.11,129.06,56.31962]
[1741599667063,56.60394314,129.12,129.04,27.1233]
[1741599667268,0.14216157,129.1,129.06,56.31962]
[1741599668077,0.14216157,129.12,129.09,56.31962]
[1741599668284,0.28432314,129.14,129.1,56.31962]
[1741599668458,0.14216157,129.14,129.1,56.31962]
[1741599668667,0.14216157,129.14,129.09,56.31962]
[1741599668875,0.14216157,129.14,129.1,56.31962]
[1741599669079,0.14216157,129.14,129.12,56.31962]
[1741599669297,0.14216157,129.14,129.13,56.31962]
[1741599669960,82.463,129.19,129.13,56.31962]
[1741599670270,0.14216157,129.16,129.08,18.64964886]
[1741599670690,0.14216157,129.16,129.13,56.31962]
[1741599670864,0.28432314,129.18,129.15,56.31962]
[1741599671194,0.063,129.19,129.17,56.31962]
[1741599671398,0.063,129.19,129.18,56.31962]
[1741599671575,0.063,129.19,129.17,56.31962]
[1741599671896,0.063,129.19,129.18,56.31962]
[1741599672067,0.063,129.19,129.18,112.63924]
[1741599672993,0.063,129.19,129.18,131.28888886]
[1741599673362,0.063,129.19,129.18,139.02998886]
[1741599673988,0.063,129.22,129.21,74.96926886]
[1741599674692,0.063,129.22,129.21,76.31962]
[1741599674879,0.063,129.22,129.21,94.96926886]
[1741599675088,0.063,129.22,129.21,151.28888886]
[1741599675474,0.063,129.22,129.21,159.02818886]
[1741599676076,7.93846157,129.31,129.22,18.64964886]
[1741599676277,0.14216157,129.29,129.22,18.64964886]
[1741599676492,0.14216157,129.29,129.24,56.31962]
[1741599676699,0.28432314,129.27,129.23,56.31962]
[1741599677075,56.46178157,129.27,129.19,18.64964886]
[1741599677278,0.14216157,129.24,129.2,56.31962]
[1741599677490,0.14216157,129.24,129.18,56.31962]
[1741599677491,7.7381,129.23,129.18,56.31962]
[1741599677698,0.14216157,129.21,129.16,56.31962]
[1741599678084,56.46178157,129.21,129.16,56.31962]
[1741599678598,56.46178157,129.21,129.13,18.64964886]
[1741599678599,0.14216157,129.22,129.17,56.31962]
[1741599678776,0.28432314,129.22,129.17,56.31962]
[1741599679102,56.60394314,129.22,129.13,7.744]
[1741599679302,56.60394314,129.18,129.13,56.31962]
[1741599679610,7.7413,129.18,129.14,56.31962]
[1741599679921,7.88286157,129.19,129.14,56.31962]
[1741599680077,0.14216157,129.18,129.14,56.31962]
[1741599680269,0.14216157,129.18,129.13,56.31962]
[1741599680502,0.14216157,129.16,129.11,56.31962]
[1741599680675,56.31962,129.15,129.1,56.31962]
[1741599681001,56.46178157,129.16,129.11,56.31962]
[1741599681519,56.46178157,129.16,129.09,0.03]
[1741599681520,7.7441,129.13,129.09,56.34962]
[1741599681684,0.14216157,129.12,129.09,0.03]
[1741599682191,0.28432314,129.12,129.09,0.03]
[1741599682413,0.14216157,129.1,129.09,0.03]
[1741599682772,56.60394314,129.1,129.09,0.03]
[1741599683486,64.34984314,129.1,129.09,0.03]
[1741599683697,0.28432314,129.1,129.09,0.03]
[1741599683898,0.28432314,129.11,129.09,0.03]
[1741599684092,20.0,129.12,129.09,0.03]
[1741599684316,0.14216157,129.11,129.09,0.03]
[1741599685200,0.14216157,129.12,129.09,0.03]
[1741599685400,0.28432314,129.14,129.11,56.31962]
[1741599685596,56.60394314,129.15,129.1,56.31962]
[1741599685802,56.60394314,129.15,129.09,56.34962]
[1741599686112,0.28432314,129.15,129.1,56.31962]
[1741599686803,0.14216157,129.13,129.09,56.34962]
[1741599687009,56.31962,129.12,129.09,0.03]
[1741599687195,56.60394314,129.1,129.09,0.03]
[1741599687886,0.28432314,129.1,129.09,0.03]
[1741599688203,0.28432314,129.13,129.09,56.34962]
[1741599688617,64.06332,129.14,129.09,56.34962]
[1741599688618,82.4,129.15,129.1,56.31962]
[1741599688920,82.4,129.15,129.12,56.31962]
[1741599688921,0.14216157,129.15,129.12,56.31962]
[1741599689214,0.14216157,129.15,129.11,56.31962]
[1741599689397,0.14216157,129.15,129.12,56.31962]
[1741599689721,0.28432314,129.16,129.09,0.03]
[1741599689879,56.46178157,129.14,129.09,56.34962]
[1741599690084,0.14216157,129.13,129.09,0.03]
[1741599690322,0.14216157,129.12,129.09,0.03]
[1741599690491,0.14216157,129.12,129.09,56.34962]
[1741599690892,0.28432314,129.13,129.09,0.03]
[1741599691086,0.28432314,129.11,129.09,0.03]
[1741599691322,56.60394314,129.11,129.09,0.03]
[1741599692113,0.28432314,129.05,129.03,0.03]
[1741599692283,56.60394314,129.04,129.03,0.03]
[1741599692906,64.35344314,129.04,129.03,0.03]
[1741599693105,20.28432314,129.01,129.0,0.03]
[1741599693420,56.60394314,128.97,128.96,0.063]
[1741599694118,75.253592,128.97,128.96,0.0001]
[1741599695114,64.35764314,128.97,128.96,0.0001]
[1741599695307,83.007292,128.97,128.96,0.0001]
[1741599695893,18.933972,128.96,128.87,56.31962]
[1741599696195,56.60394314,128.91,128.86,56.31962]